bitfinex/quotes_SOLUSD_20250917
["timestamp","ask_amount","ask_price","bid_price","bid_amount"]
[1758131445898,13.59559401,235.98,235.9,1.52374638]
[1758131446092,1.52374638,235.98,235.91,1.52374638]
[1758131446292,13.65559401,236.01,235.88,0.03]
[1758131446293,0.06,236.01,235.95,1.52374638]
[1758131446497,0.06,236.01,235.97,1.52374638]
[1758131446690,0.06,236.01,235.98,1.52374638]
[1758131446873,0.06,236.01,235.93,0.7]
[1758131447082,0.78,236.01,235.95,1.52374638]
[1758131447291,0.78,236.01,235.93,0.7]
[1758131447292,0.06,236.01,235.96,2.22374638]
[1758131447495,0.06,236.01,235.97,2.22374638]
[1758131447682,0.06,236.01,235.9,26.0]
[1758131447683,0.06,236.01,235.96,5.76164435]
[1758131447888,0.06,236.01,235.96,4.23789797]
[1758131448092,0.06,236.01,235.96,4.93789797]
[1758131448290,0.06,236.01,235.97,0.7]
[1758131448581,0.06,236.01,235.96,4.23789797]
[1758131448886,3.96317271,236.01,235.96,4.23789797]
[1758131449285,3.90317271,235.98,235.94,4.23824196]
[1758131449489,0.72,236.0,235.92,4.23863465]
[1758131449490,3.90317271,235.97,235.92,4.23863465]
[1758131449708,3.90317271,235.97,235.92,0.7]
[1758131449883,0.72,236.0,235.92,0.7]
[1758131450203,3.90317271,235.97,235.92,0.7]
[1758131450407,0.72,236.0,235.93,0.7]
[1758131450708,3.90317271,235.99,235.93,0.7]
[1758131451102,3.90317271,236.0,235.93,4.60317271]
[1758131451699,35.54,236.0,235.95,3.90317271]
[1758131451893,0.06,236.01,235.96,4.60317271]
[1758131452388,0.06,236.01,235.97,0.7]
[1758131452580,0.06,236.01,235.98,4.60317271]
[1758131452997,0.06,236.01,235.99,4.60317271]
[1758131453204,0.06,236.01,236.0,3.90317271]
[1758131453415,0.06,236.01,236.0,4.60317271]
[1758131453786,0.06,236.01,236.0,8.84046084]
[1758131453988,0.06,236.01,236.0,34.84046084]
[1758131457199,0.06,236.01,236.0,30.93728813]
[1758131457798,0.06,236.01,236.0,34.84046084]
[1758131459218,0.06,236.03,236.0,45.43368117]
[1758131459519,0.06,236.03,236.02,3.90317271]
[1758131460099,0.06,236.03,236.02,8.14010178]
[1758131460296,0.06,236.03,236.02,4.23692907]
[1758131460494,4.62317271,236.03,235.9,13.59559401]
[1758131460695,3.90317271,236.0,235.94,0.66]
[1758131460896,3.90317271,236.0,235.94,26.66]
[1758131461310,0.66,236.01,235.94,26.66]
[1758131461506,3.90317271,235.99,235.94,26.66]
[1758131461709,4.56317271,236.01,235.94,26.0]
[1758131461908,0.66,236.01,235.94,30.56317271]
[1758131462110,0.06,236.03,235.97,3.90317271]
[1758131462521,0.06,236.03,235.96,3.90317271]
[1758131463003,0.66,236.02,235.95,30.23818605]
[1758131463223,3.90317271,236.0,235.95,30.23818605]
[1758131463405,4.56317271,236.0,235.95,30.23818605]
[1758131463605,3.90317271,235.99,235.93,4.23846517]
[1758131463803,14.88864175,236.03,235.95,0.03]
[1758131463804,0.66,235.98,235.95,0.03]
[1758131464006,3.90317271,235.96,235.95,0.03]
[1758131464224,57.17677316,235.96,235.95,0.03]
[1758131464504,22.40677316,235.96,235.95,0.03]
[1758131464704,57.84677316,235.96,235.95,0.03]
[1758131465111,53.60876672,235.96,235.95,0.03]
[1758131465311,40.01317271,235.96,235.95,0.03]
[1758131465511,57.84677316,235.96,235.92,0.03]
[1758131465709,13.59559401,235.93,235.92,0.03]
[1758131465942,17.49876672,235.93,235.92,0.03]
[1758131466145,39.34317271,235.93,235.92,0.03]
[1758131466446,14.26559401,235.96,235.92,0.03]
[1758131466608,35.44,235.97,235.92,0.03]
[1758131466927,36.11,235.97,235.92,0.03]
[1758131467230,17.49876672,235.95,235.92,0.03]
[1758131467433,13.59559401,235.95,235.92,0.03]
[1758131467729,3.90317271,235.93,235.92,0.03]
[1758131467930,17.49876672,235.93,235.92,0.03]
[1758131468113,0.67,235.93,235.92,0.03]
[1758131468516,18.16876672,235.93,235.92,0.03]
[1758131468721,14.26559401,235.93,235.92,0.03]
[1758131468919,18.16876672,235.93,235.92,0.03]
[1758131469929,14.26559401,235.96,235.92,0.03]
[1758131470307,35.42,235.95,235.92,0.03]
[1758131470948,14.26559401,235.96,235.92,0.03]
[1758131471148,35.42,235.94,235.92,0.03]
[1758131471519,4.57317271,235.93,235.92,0.03]
[1758131472045,5.68484165,235.97,235.92,0.03]
[1758131472229,35.42,235.96,235.92,0.03]
[1758131472544,41.77484165,235.96,235.92,0.03]
[1758131472720,6.35484165,235.95,235.92,0.03]
[1758131473236,5.68484165,235.94,235.92,0.03]
[1758131473549,5.68484165,235.93,235.92,0.03]
[1758131473741,6.35484165,235.93,235.92,0.03]
[1758131474320,24.18898099,235.93,235.92,0.03]
[1758131481016,27.03137897,235.93,235.92,0.03]
[1758131481245,14.26559401,235.93,235.92,0.03]
[1758131481424,54.66043566,235.93,235.92,0.03]
[1758131482150,19.28043566,235.93,235.92,0.03]
[1758131482361,54.66043566,235.93,235.92,0.03]
[1758131482557,48.97559401,235.93,235.92,0.03]
[1758131483225,0.06,235.95,235.92,0.03]
[1758131483426,35.36,235.94,235.92,0.03]
[1758131484134,19.95043566,235.93,235.92,0.03]
[1758131485352,18.50413934,235.93,235.92,0.03]
[1758131485558,24.18898099,235.93,235.92,0.03]
[1758131485764,27.03026648,235.93,235.92,0.03]
[1758131486066,62.39026648,235.93,235.92,0.03]
[1758131487868,0.06,235.95,235.92,0.72]
[1758131488164,13.59559401,235.93,235.92,0.03]
[1758131489059,13.59559401,235.93,235.92,0.72]
[1758131489251,5.74484165,235.95,235.92,0.72]
[1758131489567,5.74484165,235.95,235.92,0.03]
[1758131489772,48.93559401,235.94,235.93,0.69]
[1758131489977,0.06,235.95,235.92,0.03]
[1758131490273,0.06,235.95,235.94,0.69]
[1758131490446,35.4,235.95,235.94,0.69]
[1758131491764,13.59559401,235.94,235.92,0.03]
[1758131491965,0.06,235.95,235.93,0.69]
[1758131492264,0.06,235.95,235.92,0.03]
[1758131492265,35.32,235.94,235.92,0.03]
[1758131492472,35.32,235.94,235.92,4.268684]
[1758131492864,35.32,235.94,235.93,0.69]
[1758131493065,35.32,235.94,235.92,0.03]
[1758131493066,5.74484165,235.95,235.92,0.03]
[1758131493250,19.28043566,235.93,235.92,0.03]
[1758131493671,19.95043566,235.93,235.92,0.03]
[1758131493976,24.18898099,235.93,235.92,0.03]
[1758131494681,27.02927275,235.93,235.92,0.03]
[1758131496173,62.32927275,235.93,235.92,0.03]
[1758131497350,75.06927275,235.93,235.92,0.03]
[1758131497775,69.3844311,235.93,235.92,0.03]
[1758131497978,75.06927275,235.93,235.92,0.03]
[1758131499355,75.06927275,235.93,235.89,0.03]
[1758131499356,52.33559401,235.9,235.89,0.03]
[1758131499680,46.33559401,235.85,235.84,0.03]
[1758131499904,75.44215824,235.85,235.84,0.03]
[1758131500108,76.11218936,235.85,235.84,0.03]
[1758131500677,72.2104187,235.85,235.84,0.03]
[1758131500884,36.9304187,235.85,235.84,0.03]
[1758131501075,75.05095865,235.85,235.84,0.03]
[1758131501290,76.11243755,235.85,235.84,0.03]
[1758131501476,96.11243755,235.85,235.84,0.03]
[1758131501675,96.11243755,235.85,235.79,0.03]
[1758131501676,52.33559401,235.82,235.79,0.03]
[1758131501884,52.33559401,235.82,235.78,1e-08]
[1758131501885,116.66764577,235.82,235.78,1e-08]
[1758131502099,32.02043566,235.79,235.78,1e-08]
[1758131502290,19.28043566,235.79,235.78,1e-08]
[1758131502688,59.13169207,235.79,235.78,1e-08]
[1758131503209,57.39998363,235.79,235.78,1e-08]
[1758131503569,22.11998363,235.79,235.78,1e-08]
[1758131503773,54.56043566,235.79,235.78,1e-08]
[1758131503998,26.36055838,235.79,235.78,1e-08]
[1758131504175,58.80149762,235.79,235.78,1e-08]
[1758131504494,61.6410683,235.79,235.78,1e-08]
[1758131504893,26.3610683,235.79,235.78,1e-08]
[1758131505093,53.09665597,235.79,235.78,1e-08]
[1758131505324,58.78149762,235.79,235.78,1e-08]
[1758131505609,55.9351722,235.79,235.78,1e-08]
[1758131505779,61.62001385,235.79,235.78,1e-08]
[1758131505973,16.43411024,235.79,235.78,1e-08]
[1758131506190,48.85559401,235.79,235.78,0.72000001]
[1758131506992,54.54043566,235.79,235.78,1e-08]
[1758131507294,48.85559401,235.79,235.78,1e-08]
[1758131507479,4.2401801,235.84,235.78,0.72000001]
[1758131507679,13.59559401,235.82,235.78,6.40484166]
[1758131507893,35.26,235.81,235.79,0.72]
[1758131508200,35.26,235.8,235.79,6.40484165]
[1758131508398,35.26,235.8,235.79,10.64587955]
[1758131508707,40.94484165,235.8,235.78,1e-08]
[1758131508879,19.28043566,235.79,235.78,1e-08]
[1758131509600,35.26,235.79,235.78,6.40484166]
[1758131509985,35.26,235.79,235.78,0.72000001]
[1758131510590,13.59559401,235.83,235.78,0.72000001]
[1758131510791,35.26,235.82,235.79,0.72]
[1758131510986,35.26,235.82,235.8,0.72]
[1758131511286,35.26,235.82,235.78,1e-08]
[1758131511287,19.28043566,235.83,235.81,0.72]
[1758131511492,54.52043566,235.82,235.78,1e-08]
[1758131511680,4.24019719,235.84,235.78,1e-08]
[1758131511681,35.24,235.81,235.79,0.72]
[1758131511887,35.24,235.8,235.78,1e-08]
[1758131512094,35.24,235.79,235.78,1e-08]
[1758131512777,35.24,235.79,235.78,0.72000001]
[1758131513602,13.59559401,235.83,235.78,0.72000001]
[1758131513603,19.28043566,235.83,235.78,0.72000001]
[1758131513797,13.59559401,235.84,235.78,0.72000001]
[1758131513994,35.24,235.82,235.78,0.72000001]
[1758131514207,19.28043566,235.79,235.78,1e-08]
[1758131514412,48.83559401,235.79,235.78,1e-08]
[1758131514579,5.68484165,235.82,235.78,0.72000001]
[1758131514779,37.26922392,235.87,235.78,4.96120228]
[1758131514780,5.68484165,235.83,235.78,4.96120228]
[1758131515002,35.22,235.82,235.79,0.72]
[1758131515207,35.22,235.82,235.8,0.72]
[1758131515614,13.59559401,235.86,235.78,4.24120228]
[1758131515818,5.68484165,235.85,235.78,4.24120228]
[1758131516005,5.68484165,235.85,235.8,4.2408821]
[1758131516190,19.28043566,235.86,235.81,0.72]
[1758131516502,5.68484165,235.83,235.78,0.72000001]
[1758131516710,35.22,235.82,235.79,0.72]
[1758131516884,35.22,235.82,235.8,0.65]
[1758131517401,35.22,235.82,235.78,1e-08]
[1758131517701,35.22,235.82,235.79,0.65]
[1758131517900,35.22,235.82,235.8,0.65]
[1758131518106,35.22,235.82,235.81,0.65]
[1758131518631,13.59559401,235.84,235.81,0.65]
[1758131518810,13.59559401,235.84,235.82,0.65]
[1758131518811,35.22,235.83,235.82,0.65]
[1758131519318,35.2,235.83,235.78,9.92604247]
[1758131519509,35.2,235.83,235.79,0.65]
[1758131519706,5.68484165,235.82,235.79,0.65]
[1758131519907,5.68484165,235.81,235.78,1e-08]
[1758131520111,35.2,235.8,235.79,0.65]
[1758131520714,35.2,235.8,235.78,1e-08]
[1758131520913,5.68484165,235.79,235.78,1e-08]
[1758131521118,35.2,235.79,235.78,4.24124184]
[1758131521311,35.2,235.79,235.78,9.92608349]
[1758131521710,0.06,235.84,235.78,21.17918807]
[1758131521911,35.2,235.83,235.81,5.68484165]
[1758131522136,35.2,235.83,235.82,0.65]
[1758131522440,0.06,235.84,235.82,4.24052243]
[1758131522613,40.88484165,235.83,235.78,1e-08]
[1758131522932,40.88484165,235.83,235.78,0.65000001]
[1758131522933,5.68484165,235.8,235.78,0.65000001]
[1758131523237,35.2,235.79,235.78,0.65000001]
[1758131523422,40.86484165,235.79,235.78,1e-08]
[1758131523610,35.18,235.79,235.78,1e-08]
[1758131524028,35.18,235.79,235.78,0.67000001]
[1758131524714,5.68484165,235.83,235.78,4.91121327]
[1758131524919,35.18,235.82,235.8,5.68484165]
[1758131525236,0.06,235.84,235.81,6.35484165]
[1758131525433,35.18,235.83,235.81,0.67]
[1758131525613,35.18,235.83,235.82,5.68484165]
[1758131525813,35.18,235.83,235.82,0.67]
[1758131526313,0.06,235.84,235.83,4.24034261]
[1758131526521,0.06,235.84,235.83,9.92518426]
[1758131526723,0.06,235.84,235.83,10.59518426]
[1758131526920,26.22,235.86,235.83,21.1960408]
[1758131527243,35.24,235.87,235.85,5.68484165]
[1758131527537,35.24,235.87,235.86,32.35484165]
[1758131527740,0.06,235.89,235.86,32.35484165]
[1758131528038,0.06,235.89,235.88,5.68484165]
[1758131528639,0.06,235.89,235.88,10.59428543]
[1758131529115,0.06,235.89,235.88,0.67]
[1758131529519,0.06,235.89,235.85,5.68484165]
[1758131529720,0.06,235.89,235.86,0.67]
[1758131529915,5.74484165,235.89,235.81,10.60149946]
[1758131530120,0.06,235.89,235.82,4.91052243]
[1758131530322,5.68484165,235.86,235.82,4.91052243]
[1758131530536,35.16,235.85,235.83,0.67]
[1758131530737,0.06,235.89,235.83,0.67]
[1758131530940,0.06,235.89,235.88,5.68484165]
[1758131531142,0.06,235.89,235.88,6.35484165]
[1758131531842,35.14,235.91,235.88,4.57555172]
[1758131531843,20.2,235.91,235.88,4.57555172]
[1758131532026,20.2,235.91,235.85,0.67]
[1758131532027,3.90555172,235.9,235.85,0.67]
[1758131532226,3.90555172,235.9,235.86,0.67]
[1758131532426,3.90555172,235.9,235.87,0.67]
[1758131532631,20.2,235.91,235.88,4.23944378]
[1758131532833,24.10555172,235.91,235.88,4.23944378]
[1758131533135,35.14,235.9,235.89,0.67]
[1758131533335,35.14,235.9,235.84,4.57555172]
[1758131533539,0.67,235.94,235.85,3.90555172]
[1758131533738,35.14,235.93,235.86,3.90555172]
[1758131533925,3.90555172,235.91,235.85,0.67]
[1758131534133,3.90555172,235.88,235.84,4.24016282]
[1758131534325,35.14,235.87,235.84,4.24016282]
[1758131534639,35.14,235.87,235.83,4.24034261]
[1758131534821,35.14,235.87,235.83,4.91034261]
[1758131535018,35.14,235.87,235.84,0.67]
[1758131535221,0.67,235.94,235.86,3.90555172]
[1758131535448,39.02555172,235.93,235.87,3.90555172]
[1758131535657,3.90555172,235.91,235.86,0.67]
[1758131535855,3.90555172,235.91,235.84,3.90555172]
[1758131535856,3.90555172,235.91,235.85,3.90555172]
[1758131536025,35.12,235.9,235.86,4.57555172]
[1758131536344,35.12,235.9,235.83,14.84119915]
[1758131536345,3.90555172,235.87,235.83,4.24034261]
[1758131536529,3.90555172,235.86,235.8,14.84288234]
[1758131536733,3.90555172,235.84,235.8,4.2408821]
[1758131537552,3.90555172,235.83,235.8,4.2408821]
[1758131537853,10.59795347,235.9,235.8,4.2408821]
[1758131537854,10.65572804,235.95,235.82,3.90555172]
[1758131538057,10.65572804,235.95,235.84,3.90555172]
[1758131538058,3.90555172,235.91,235.84,3.90555172]
[1758131538629,3.90555172,235.91,235.85,4.23998304]
[1758131539147,3.90555172,235.91,235.83,4.24024277]
[1758131539148,3.90555172,235.89,235.83,4.24024277]
[1758131539550,3.90555172,235.84,235.78,10.60290261]
[1758131539747,3.90555172,235.85,235.79,15.51371686]
[1758131539957,35.12,235.84,235.82,3.90555172]
[1758131540125,3.90555172,235.88,235.83,0.67]
[1758131540126,35.12,235.85,235.83,0.67]
[1758131540539,35.12,235.85,235.8,3.90555172]
[1758131540738,35.12,235.85,235.81,4.91070226]
[1758131540937,3.90555172,235.88,235.82,4.57555172]
[1758131541137,39.59559401,235.91,235.81,14.84245791]
[1758131541138,35.1,235.87,235.83,4.57555172]
[1758131541429,35.1,235.88,235.85,3.90555172]
[1758131542157,0.06,235.92,235.87,3.90555172]
[1758131542330,0.06,235.92,235.89,3.90555172]
[1758131542758,0.06,235.92,235.91,3.90555172]
[1758131542930,0.06,235.92,235.91,4.57555172]
[1758131543836,0.06,235.92,235.91,8.81445638]
[1758131544037,0.06,235.92,235.91,4.90890466]
[1758131544256,0.06,235.92,235.91,4.23890466]
[1758131544753,0.06,235.92,235.91,8.81445638]
[1758131545055,0.06,235.92,235.91,4.23890466]
[1758131545242,0.06,235.92,235.91,8.81445638]
[1758131545441,0.06,235.92,235.91,8.14445638]
[1758131545655,0.06,235.92,235.88,37.26849456]
[1758131545656,0.06,235.92,235.89,4.23910093]
[1758131545832,3.96555172,235.92,235.86,4.23980327]
[1758131546037,3.90555172,235.91,235.86,4.23980327]
[1758131546365,0.06,235.92,235.87,0.67]
[1758131546532,0.06,235.92,235.91,3.90555172]
[1758131546933,0.06,235.92,235.91,4.57555172]
[1758131547738,0.06,235.92,235.91,8.81445638]
[1758131550061,0.06,235.92,235.91,4.23890466]
[1758131551257,4.63555172,235.92,235.86,10.59922762]
[1758131551571,3.90555172,235.9,235.87,4.23962352]
[1758131551871,35.06,235.89,235.87,4.23962352]
[1758131553362,35.06,235.89,235.86,14.83903089]
[1758131553860,3.90555172,235.88,235.86,4.23980327]
[1758131554067,4.57555172,235.87,235.84,4.24002116]
[1758131554370,35.06,235.89,235.76,0.03]
[1758131554371,3.90555172,235.85,235.79,4.24106196]
[1758131554560,35.04,235.84,235.79,4.24106196]
[1758131554877,35.04,235.84,235.79,4.92106196]
[1758131555070,35.04,235.84,235.79,18.74926858]
[1758131555246,35.04,235.85,235.83,3.90555172]
[1758131555440,35.04,235.85,235.83,4.58555172]
[1758131555635,0.06,235.91,235.84,4.58555172]
[1758131555967,0.06,235.91,235.88,3.90555172]
[1758131556194,0.06,235.91,235.9,3.90555172]
[1758131557384,0.06,235.91,235.9,8.82463607]
[1758131558283,0.06,235.91,235.9,8.14463607]
[1758131558784,0.06,235.91,235.9,8.82463607]
[1758131559971,0.06,235.91,235.9,4.91908435]
[1758131560167,0.06,235.91,235.9,8.82463607]
[1758131560572,0.06,235.91,235.9,8.14463607]
[1758131561389,0.06,235.91,235.85,26.0]
[1758131561562,3.96555172,235.91,235.85,4.23998304]
[1758131562077,3.90555172,235.87,235.84,4.27016116]
[1758131562273,35.02,235.87,235.84,4.27016116]
[1758131562475,3.90555172,235.89,235.84,4.27016116]
[1758131562691,38.92555172,235.88,235.84,4.27016116]
[1758131563405,0.06,235.91,235.84,3.93555172]
[1758131563565,0.06,235.91,235.9,3.90555172]
[1758131564082,0.06,235.91,235.89,3.90555172]
[1758131564478,0.06,235.91,235.87,0.68]
[1758131564684,0.06,235.91,235.88,0.68]
[1758131564877,0.06,235.91,235.9,3.90555172]
[1758131565374,0.06,235.91,235.9,8.82463607]
[1758131566576,0.06,235.91,235.9,4.23908435]
[1758131567499,0.06,235.91,235.9,4.58555172]
[1758131568282,0.06,235.91,235.9,26.68]
[1758131568692,0.06,235.91,235.9,30.58555172]
[1758131569695,0.06,235.91,235.9,34.82463607]
[1758131570089,0.06,235.91,235.9,30.91908435]
[1758131570292,0.06,235.91,235.9,34.82463607]
[1758131570598,0.06,235.91,235.9,35.2485445]
[1758131571598,0.06,235.91,235.9,34.82463607]
[1758131571803,0.06,235.91,235.9,35.2485445]
[1758131572402,0.06,235.91,235.9,34.82463607]
[1758131573282,0.06,235.91,235.9,34.14463607]
[1758131573682,0.06,235.91,235.9,34.82463607]
[1758131573885,0.06,235.91,235.9,30.23908435]
[1758131574085,0.06,235.91,235.9,4.23908435]
[1758131574801,0.06,235.91,235.9,8.14463607]
[1758131575401,0.06,235.91,235.9,4.23908435]
[1758131575780,0.06,235.91,235.88,26.0]
[1758131575988,0.06,235.91,235.88,0.03]
[1758131576300,0.06,235.91,235.89,29.90555172]
[1758131576692,0.06,235.91,235.89,26.0]
[1758131577000,0.06,235.91,235.89,3.90555172]
[1758131577187,0.06,235.91,235.9,3.90555172]
[1758131577504,0.06,235.91,235.89,26.0]
[1758131578286,0.06,235.91,235.9,4.23908435]
[1758131579199,0.06,235.91,235.9,8.14463607]
[1758131579588,0.06,235.91,235.9,8.84463607]
[1758131580304,0.06,235.91,235.89,26.0]
[1758131580494,0.06,235.91,235.89,30.60555172]
[1758131580986,0.06,235.91,235.9,3.90555172]
[1758131581300,0.06,235.92,235.9,30.60555172]
[1758131581504,0.06,235.92,235.91,5.02944218]
[1758131581805,0.06,235.94,235.93,26.0]
[1758131582106,0.06,236.03,235.95,26.0]
[1758131582287,0.06,236.03,235.97,8.14337856]
[1758131582806,0.06,236.03,235.97,8.84337856]
[1758131583398,1e-08,235.98,235.97,8.84337856]
[1758131584588,0.06,236.03,235.99,26.0]
[1758131584589,1e-08,236.0,235.99,26.0]
[1758131584820,1e-08,236.0,235.99,29.90555172]
[1758131585113,1e-08,236.0,235.99,30.62555172]
[1758131585997,1e-08,236.0,235.99,26.72]
[1758131586183,1e-08,236.0,235.99,30.62555172]
[1758131586388,1e-08,236.0,235.99,34.8630194]
[1758131588715,1e-08,236.0,235.99,34.1430194]
[1758131588905,1e-08,236.0,235.99,34.8630194]
[1758131589589,1e-08,236.0,235.99,8.8630194]
[1758131590493,1e-08,236.0,235.99,34.8630194]
[1758131591785,1e-08,236.0,235.99,36.63291531]
[1758131592319,1e-08,236.0,235.99,35.91291531]
[1758131592691,1e-08,236.0,235.99,36.63291531]
[1758131592893,1e-08,236.0,235.99,35.91291531]
[1758131593095,1e-08,236.0,235.99,4.23746768]
[1758131593288,1e-08,236.0,235.99,35.91291531]
[1758131593909,1e-08,236.0,235.99,30.23746768]
[1758131594099,1e-08,236.0,235.99,35.91291531]
[1758131595411,0.72000001,236.0,235.99,4.23746768]
[1758131595802,1e-08,236.0,235.99,4.23746768]
[1758131596804,0.72000001,236.0,235.99,4.23746768]
[1758131597005,0.72000001,236.0,235.98,4.23764725]
[1758131597452,1e-08,236.0,235.98,9.91309488]
[1758131597723,1e-08,236.0,235.99,5.67544763]
[1758131598221,0.72000001,236.0,235.98,4.23764725]
[1758131598520,1e-08,236.0,235.98,4.23764725]
[1758131598927,0.72,235.99,235.98,4.23764725]
[1758131599123,1e-08,236.0,235.98,4.23764725]
[1758131599423,1e-08,236.0,235.99,5.67544763]
[1758131599814,1e-08,236.0,235.98,9.91309488]
[1758131600509,1e-08,236.0,235.98,4.23764725]
[1758131600826,1e-08,236.0,235.98,9.91309488]
[1758131601399,1e-08,236.0,235.99,6.39544763]
[1758131601622,1e-08,236.0,235.99,32.39544763]
[1758131603314,1e-08,236.0,235.99,36.63291531]
[1758131605626,1e-08,236.0,235.99,71.45291531]
[1758131605814,1e-08,236.0,235.99,65.77746768]
[1758131606011,1e-08,236.0,235.99,71.45291531]
[1758131606415,1e-08,236.0,235.99,35.91291531]
[1758131606931,1e-08,236.0,235.99,4.23746768]
[1758131608020,1e-08,236.0,235.99,9.91291531]
[1758131609616,1e-08,236.0,235.99,10.63291531]
[1758131610133,1e-08,236.0,235.99,37.05666207]
[1758131610432,1e-08,236.0,235.99,10.63291531]
[1758131611606,1e-08,236.0,235.99,24.22850932]
[1758131611806,1e-08,236.0,235.99,24.25850932]
[1758131612208,0.1,236.04,235.99,24.25850932]
[1758131612209,0.1,236.04,236.03,5.67544763]
[1758131613025,0.82,236.04,236.02,31.67544763]
[1758131613233,7.10134988,236.23,236.04,12.74]
[1758131613545,9.46846651,236.42,236.04,12.74]
[1758131613546,32.82,236.5,236.29,26.0]
[1758131613831,32.82,236.5,236.26,13.59559401]
[1758131613832,0.72,236.36,236.33,26.0]
[1758131614125,0.7,236.35,236.29,26.0]
[1758131614306,0.7,236.34,236.3,12.7110565]
[1758131614512,0.7,236.33,236.26,26.0]
[1758131614714,0.7,236.33,236.26,38.71213374]
[1758131614906,37.78,236.42,236.26,12.71213374]
[1758131614907,0.7,236.32,236.26,12.71213374]
[1758131615126,0.7,236.31,236.23,14.81606907]
[1758131615336,37.88,236.36,236.3,5.67544763]
[1758131615507,37.88,236.36,236.23,40.81606907]
[1758131615508,37.88,236.36,236.33,5.67544763]
[1758131615714,37.86,236.42,236.31,5.67544763]
[1758131615930,0.7,236.41,236.35,5.67544763]
[1758131616914,0.7,236.41,236.37,5.67544763]
[1758131617112,0.7,236.44,236.39,5.67544763]
[1758131617419,0.7,236.44,236.38,14.80666722]
[1758131617420,0.7,236.43,236.38,4.23047635]
[1758131617624,0.7,236.42,236.38,4.23047635]
[1758131617817,0.7,236.44,236.39,5.67544763]
[1758131618022,0.7,236.47,236.41,5.67544763]
[1758131618219,40.01544763,236.5,236.38,14.80666722]
[1758131618220,37.8,236.48,236.38,35.95904897]
[1758131618419,0.7,236.47,236.41,5.67544763]
[1758131618618,0.7,236.47,236.38,35.95904897]
[1758131618837,0.7,236.46,236.38,14.80666722]
[1758131619029,5.67544763,236.44,236.39,3.0757676]
[1758131619237,0.7,236.43,236.4,7.30588604]
[1758131619438,0.7,236.43,236.4,4.23011844]
[1758131619631,0.7,236.43,236.41,3.0701468]
[1758131619838,5.67544763,236.43,236.41,3.0701468]
[1758131620038,5.67544763,236.43,236.4,4.23011844]
[1758131620228,0.7,236.45,236.4,14.80541454]
[1758131620229,5.67544763,236.44,236.4,14.80541454]
[1758131620734,0.7,236.43,236.4,4.23011844]
[1758131621635,0.7,236.43,236.35,31.67544763]
[1758131621636,5.67544763,236.44,236.38,10.5757619]
[1758131622643,37.72,236.45,236.38,10.5757619]
[1758131622945,5.67544763,236.41,236.38,10.5757619]
[1758131623519,38.56846526,236.5,236.38,10.5757619]
[1758131623741,5.67544763,236.43,236.38,10.5757619]
[1758131623943,6.37544763,236.43,236.38,10.5757619]
[1758131624128,5.67544763,236.41,236.38,10.5757619]
[1758131624622,0.7,236.43,236.38,10.5757619]
[1758131624825,5.67544763,236.41,236.38,10.5757619]
[1758131625243,5.67544763,236.41,236.37,4.23065532]
[1758131625244,5.67544763,236.41,236.37,30.23065532]
[1758131625426,5.67544763,236.39,236.37,30.23065532]
[1758131625748,5.67544763,236.39,236.37,4.23065532]
[1758131625916,5.67544763,236.39,236.37,30.23065532]
[1758131626119,5.67544763,236.39,236.37,4.23065532]
[1758131626317,0.7,236.43,236.37,4.23065532]
[1758131626318,5.67544763,236.41,236.37,30.95065532]
[1758131626536,0.7,236.43,236.37,30.95065532]
[1758131626537,43.25544763,236.43,236.37,30.95065532]
[1758131626745,38.56837494,236.5,236.37,30.95065532]
[1758131626746,37.54,236.44,236.38,6.39544763]